bitfinex-derivatives/quotes_BTCF0:USTF0_20250609
["timestamp","ask_amount","ask_price","bid_price","bid_amount"]
[1749508758171,0.88105693,110230.0,110220.0,0.20083446]
[1749508758372,0.88105693,110230.0,110220.0,0.18846324]
[1749508758580,0.88105693,110230.0,110220.0,0.20083711]
[1749508758780,0.88105693,110230.0,110220.0,0.18846324]
[1749508758974,0.88105693,110230.0,110220.0,0.20087649]
[1749508759178,0.88105693,110230.0,110220.0,0.20087648]
[1749508759372,1.02501444,110230.0,110220.0,0.01950401]
[1749508759577,1.02501444,110230.0,110220.0,0.20087651]
[1749508759786,1.38581444,110230.0,110220.0,0.06313364]
[1749508760078,1.38581444,110230.0,110220.0,0.00709074]
[1749508760582,1.38581444,110230.0,110220.0,0.01968999]
[1749508760883,1.38581444,110230.0,110220.0,0.01969857]
[1749508761078,1.38581444,110230.0,110220.0,0.01964134]
[1749508761280,1.3735241,110230.0,110220.0,0.00709074]
[1749508761476,1.3735241,110230.0,110220.0,0.01964486]
[1749508761676,0.8234441,110230.0,110220.0,0.01964718]
[1749508761876,1.41586091,110230.0,110220.0,0.01958976]
[1749508762073,1.41586091,110230.0,110220.0,0.00709074]
[1749508762582,1.41586091,110230.0,110220.0,0.01958383]
[1749508762785,1.41586091,110230.0,110220.0,0.06313364]
[1749508762980,1.28419374,110230.0,110220.0,0.06313364]
[1749508763282,1.28419374,110230.0,110220.0,0.01958534]
[1749508763476,1.28419374,110230.0,110220.0,0.00709074]
[1749508763680,1.41586091,110230.0,110220.0,0.07568084]
[1749508763885,1.41586091,110230.0,110220.0,0.07568069]
[1749508764084,1.41586091,110230.0,110220.0,0.06313364]
[1749508764789,1.41586091,110230.0,110220.0,0.07569508]
[1749508765186,1.41586091,110230.0,110220.0,0.01965218]
[1749508765786,1.41586091,110230.0,110220.0,0.01974192]
[1749508765978,1.41586091,110230.0,110220.0,0.01974367]
[1749508766184,1.41586091,110230.0,110220.0,0.06179167]
[1749508766490,1.41586091,110230.0,110220.0,0.0618312]
[1749508766690,1.3734441,110230.0,110220.0,0.06183252]
[1749508766990,1.3734441,110230.0,110220.0,0.11785169]
[1749508767187,1.3734441,110230.0,110220.0,0.10523648]
[1749508767389,1.3734441,110230.0,110220.0,0.11745265]
[1749508767596,1.3734441,110230.0,110220.0,0.11745837]
[1749508767790,1.3734441,110230.0,110220.0,0.06288427]
[1749508767985,1.3734441,110230.0,110220.0,0.06145902]
[1749508768390,1.41586091,110230.0,110220.0,0.04919358]
[1749508768581,1.41586091,110230.0,110220.0,0.06288993]
[1749508768793,1.41586091,110230.0,110220.0,0.06147123]
[1749508768990,1.41586091,110230.0,110220.0,0.06289002]
[1749508769289,1.41586091,110230.0,110220.0,0.04919358]
[1749508769489,1.41586091,110230.0,110220.0,0.06918474]
[1749508769688,1.54752808,110230.0,110220.0,0.06917691]
[1749508769892,1.54752808,110230.0,110220.0,0.06918515]
[1749508770090,1.54752808,110230.0,110220.0,0.0568901]
[1749508770392,1.28419374,110230.0,110220.0,0.05688954]
[1749508770591,1.28419374,110230.0,110220.0,0.05554745]
[1749508770592,1.41586091,110230.0,110220.0,0.05554745]
[1749508770789,1.54752808,110230.0,110220.0,0.06927337]
[1749508770991,1.54752808,110230.0,110220.0,0.05688976]
[1749508771290,1.54752808,110230.0,110220.0,0.06927355]
[1749508771592,1.54752808,110230.0,110220.0,0.05558664]
[1749508771784,1.54752808,110230.0,110220.0,0.02724763]
[1749508771990,1.54752808,110230.0,110220.0,0.03958901]
[1749508772314,1.28419374,110230.0,110220.0,0.05329124]
[1749508772485,1.41586091,110230.0,110220.0,0.04101728]
[1749508772791,1.415971,110230.0,110220.0,0.05334389]
[1749508772991,1.415971,110230.0,110220.0,0.03957451]
[1749508773296,1.415971,110230.0,110220.0,0.05334419]
[1749508773489,1.415971,110230.0,110220.0,0.03955779]
[1749508773689,1.415971,110230.0,110220.0,0.05334388]
[1749508773991,1.415971,110230.0,110220.0,0.02724763]
[1749508774294,1.415971,110230.0,110220.0,0.03957466]
[1749508774493,1.24180702,110230.0,110220.0,0.05334175]
[1749508774789,1.37347419,110230.0,110220.0,0.04102009]
[1749508774994,1.37347419,110230.0,110220.0,0.05329487]
[1749508775389,1.37347419,110230.0,110220.0,0.05326673]
[1749508775601,1.37347419,110230.0,110220.0,0.05323958]
[1749508775893,1.37347419,110230.0,110220.0,0.05324031]
[1749508776086,1.37347419,110230.0,110220.0,0.0409922]
[1749508776287,1.37347419,110230.0,110220.0,0.0394959]
[1749508776482,1.37347419,110230.0,110220.0,0.10928403]
[1749508776687,1.37347419,110230.0,110220.0,0.09703551]
[1749508776986,1.37323419,110230.0,110220.0,0.09703707]
[1749508777191,1.37323419,110230.0,110220.0,0.10928705]
[1749508777391,1.37323419,110230.0,110220.0,0.10928853]
[1749508777592,1.37323419,110230.0,110220.0,0.08329053]
[1749508777795,0.82355419,110230.0,110220.0,0.09554399]
[1749508778099,1.37323419,110230.0,110220.0,0.10927581]
[1749508778293,1.37323419,110230.0,110220.0,0.08329053]
[1749508778791,0.82355419,110230.0,110220.0,0.09701995]
[1749508778991,1.37319419,110230.0,110220.0,0.09701524]
[1749508779191,1.37319419,110230.0,110220.0,0.09554745]
[1749508779392,1.37319419,110230.0,110220.0,0.10927229]
[1749508779700,1.37319419,110230.0,110220.0,0.09701531]
[1749508779999,1.37279419,110230.0,110220.0,0.08329053]
[1749508780300,1.37319419,110230.0,110220.0,0.09701584]
[1749508780600,1.37319419,110230.0,110220.0,0.08329053]
[1749508780790,1.415611,110230.0,110220.0,0.04097392]
[1749508781099,0.1813725,110220.0,110210.0,0.01813]
[1749508781292,0.1813725,110220.0,110200.0,0.13964313]
[1749508781293,0.1813889,110210.0,110200.0,0.13964313]
[1749508781492,1.70039607,110210.0,110200.0,0.06977325]
[1749508781792,1.70039607,110210.0,110200.0,0.06977453]
[1749508781997,1.70039607,110210.0,110200.0,0.06825876]
[1749508782198,1.70039607,110210.0,110200.0,0.08204034]
[1749508782394,1.70039607,110210.0,110200.0,0.0820403]
[1749508782601,1.70039607,110210.0,110200.0,0.06977288]
[1749508782802,1.70039607,110210.0,110200.0,0.01570123]
[1749508783094,1.74284642,110210.0,110200.0,0.0280117]
[1749508783300,1.74284642,110210.0,110200.0,0.02804923]
[1749508783496,1.74284642,110210.0,110200.0,0.02804953]
[1749508783697,1.74284642,110210.0,110200.0,0.03015003]
[1749508783893,1.74284642,110210.0,110200.0,0.01770374]
[1749508784399,1.74293419,110210.0,110200.0,0.03014968]
[1749508784700,1.74293419,110210.0,110200.0,0.004]
[1749508784898,0.80023419,110210.0,110200.0,0.39089942]
[1749508785094,0.59331667,110210.0,110200.0,0.54214232]
[1749508785292,1.27458384,110210.0,110200.0,0.54214008]
[1749508785499,1.27418384,110210.0,110200.0,0.16893413]
[1749508785699,1.27458384,110210.0,110200.0,0.16748293]
[1749508785997,1.27458384,110210.0,110200.0,0.18119025]
[1749508785998,0.72498384,110210.0,110200.0,0.18119025]
[1749508786200,1.27454384,110210.0,110200.0,0.18120061]
[1749508786398,1.27454384,110210.0,110200.0,0.16891223]
[1749508786801,1.27454384,110210.0,110200.0,0.54194791]
[1749508787003,1.27454384,110210.0,110200.0,0.54191578]
[1749508787308,1.27454384,110210.0,110200.0,0.52825209]
[1749508787499,1.27454384,110210.0,110200.0,0.5282521]
[1749508787703,1.27454384,110210.0,110200.0,0.5160429]
[1749508787902,0.72498384,110210.0,110200.0,0.52825159]
[1749508788099,1.27454384,110210.0,110200.0,0.54210623]
[1749508788300,1.27454384,110210.0,110200.0,0.52990415]
[1749508788606,1.27454384,110210.0,110200.0,0.5160429]
[1749508788798,1.14287667,110210.0,110200.0,0.5160429]
[1749508789000,1.14287667,110210.0,110200.0,0.52991786]
[1749508789202,1.14287667,110210.0,110200.0,0.5160429]
[1749508789703,1.14283667,110210.0,110200.0,0.78694743]
[1749508789899,1.14283667,110210.0,110200.0,0.78694578]
[1749508790108,1.14243667,110210.0,110200.0,0.7869456]
[1749508790310,1.14283667,110210.0,110200.0,0.77307257]
[1749508790695,1.14689327,110210.0,110200.0,0.77307257]
[1749508790895,1.14689327,110210.0,110200.0,0.78694457]
[1749508791701,0.59737327,110210.0,110200.0,0.6552774]
[1749508791898,1.14685327,110210.0,110200.0,0.6552774]
[1749508792100,1.14685327,110210.0,110200.0,0.65518221]
[1749508792303,1.14685327,110210.0,110200.0,0.6414054]
[1749508792500,1.14685327,110210.0,110200.0,0.65518221]
[1749508792706,0.41598437,110210.0,110200.0,0.77307257]
[1749508792901,1.14685337,110210.0,110200.0,0.89842105]
[1749508793097,1.14645337,110210.0,110200.0,0.89842105]
[1749508793302,1.14685337,110210.0,110200.0,0.89840863]
[1749508793600,1.14685337,110210.0,110200.0,0.89840723]
[1749508793798,1.14685337,110210.0,110200.0,0.89840736]
[1749508793996,1.14685337,110210.0,110200.0,0.89840677]
[1749508794403,1.14685337,110210.0,110200.0,0.88464637]
[1749508794909,1.14685337,110210.0,110200.0,0.89840651]
[1749508795307,1.14685337,110210.0,110200.0,0.88464637]
[1749508795511,1.14685337,110210.0,110200.0,0.89840272]
[1749508795805,1.14685337,110210.0,110200.0,0.89840267]
[1749508796201,1.14685337,110210.0,110200.0,0.88464637]
[1749508796401,1.14685337,110210.0,110200.0,0.89840212]
[1749508796802,1.14685337,110210.0,110200.0,0.76673495]
[1749508797003,1.14685337,110210.0,110200.0,0.7529792]
[1749508797200,1.14685337,110210.0,110200.0,0.88464637]
[1749508798411,0.70705337,110210.0,110200.0,0.88464637]
[1749508798609,1.14673337,110210.0,110200.0,0.88464637]
[1749508799006,0.96530437,110210.0,110200.0,0.88464637]
[1749508799516,0.96490437,110210.0,110200.0,0.97604222]
[1749508799708,0.96530437,110210.0,110200.0,0.86380857]
[1749508800113,0.96490437,110210.0,110200.0,0.86380857]
[1749508800505,1.14629327,110210.0,110200.0,0.87253874]
[1749508800705,1.14669327,110210.0,110200.0,0.97602739]
[1749508801414,0.2523461,110230.0,110220.0,0.1813725]
[1749508801613,0.8469651,110230.0,110220.0,1.11876452]
[1749508801817,0.8469651,110230.0,110220.0,1.13233967]
[1749508802420,0.8469651,110230.0,110220.0,1.21645549]
[1749508802919,0.8479651,110230.0,110220.0,1.21645549]
[1749508803120,0.85676738,110230.0,110220.0,1.21645549]
[1749508803821,0.98943455,110230.0,110220.0,0.36318832]
[1749508804023,1.02083455,110230.0,110220.0,0.4192642]
[1749508804415,0.88916738,110230.0,110220.0,0.7800642]
[1749508805016,0.89322398,110230.0,110220.0,0.7800642]
[1749508805617,0.45362398,110230.0,110220.0,0.7800642]
[1749508805817,0.08584608,110230.0,110220.0,0.85565549]
[1749508806120,0.8075598,110230.0,110220.0,0.85565549]
[1749508806620,0.8079598,110230.0,110220.0,0.85565549]
[1749508807214,0.81652419,110230.0,110220.0,0.85565549]
[1749508809119,0.81652419,110230.0,110220.0,0.72398832]
[1749508810217,0.81652419,110230.0,110220.0,0.74771391]
[1749508810422,0.90962419,110230.0,110220.0,0.69168832]
[1749508810622,0.90962419,110230.0,110220.0,0.74770846]
[1749508811922,0.0774438,110230.0,110220.0,0.82335549]
[1749508812123,0.8075598,110230.0,110220.0,0.82335549]
[1749508813121,0.8075598,110230.0,110220.0,0.73923967]
[1749508814824,0.0774438,110230.0,110220.0,0.73923967]
[1749508815026,0.6261638,110230.0,110220.0,0.73923967]
[1749508815215,0.6261638,110230.0,110220.0,0.85140613]
[1749508815417,0.8075198,110230.0,110220.0,0.85140613]
[1749508815618,0.6261638,110230.0,110220.0,0.85140613]
[1749508816020,0.6257638,110230.0,110220.0,0.85140613]
[1749508816423,0.6261638,110230.0,110220.0,0.85140613]
[1749508817329,0.44834927,110240.0,110230.0,0.181356]
[1749508817516,0.62315332,110240.0,110230.0,0.76602317]
[1749508817821,0.25621282,110240.0,110230.0,0.76602317]
[1749508818021,0.80485282,110240.0,110230.0,0.76602317]
[1749508818417,0.80685282,110240.0,110230.0,0.76602317]
[1749508818617,0.80885282,110240.0,110230.0,0.73602317]
[1749508818820,0.88058043,110240.0,110230.0,0.573156]
[1749508819025,0.88058043,110240.0,110230.0,0.542156]
[1749508819526,0.87195282,110240.0,110230.0,0.542156]
[1749508820126,0.87600942,110240.0,110230.0,0.542156]
[1749508820328,0.87600942,110240.0,110230.0,0.65432246]
[1749508821424,1.37700999,110240.0,110230.0,0.1402174]
[1749508821620,1.37700999,110240.0,110230.0,0.05608696]
[1749508821824,0.181356,110230.0,110220.0,0.1402174]
[1749508822123,0.40612317,110230.0,110220.0,0.1402174]
[1749508823322,0.40612317,110230.0,110220.0,0.05608696]
[1749508824322,0.40812317,110230.0,110220.0,0.05608696]
[1749508824530,0.76892317,110230.0,110220.0,0.05608696]
[1749508824726,0.1813724,110220.0,110210.0,0.1402174]
[1749508824931,0.92289957,110220.0,110210.0,0.1402174]
[1749508825631,0.92289957,110220.0,110210.0,0.14027468]
[1749508826127,0.92389957,110220.0,110210.0,0.14027468]
[1749508827234,0.92589957,110220.0,110210.0,0.14027468]
[1749508827533,1.28669957,110220.0,110210.0,0.14027468]
[1749508828124,1.28669957,110220.0,110210.0,0.05614424]
[1749508828530,0.92589957,110220.0,110210.0,0.05614424]
[1749508828839,1.28669957,110220.0,110210.0,0.05614424]
[1749508829030,0.92589957,110220.0,110210.0,0.05614424]
[1749508830125,1.28669957,110220.0,110210.0,0.05614424]
[1749508830325,1.28669957,110220.0,110210.0,0.0683631]
[1749508830522,1.28669957,110220.0,110210.0,0.05614424]
[1749508830731,1.28669957,110220.0,110210.0,0.06836311]
[1749508831030,1.28669957,110220.0,110210.0,0.06836312]
[1749508831628,1.28669957,110220.0,110210.0,0.05614424]
[1749508832026,1.28669957,110220.0,110210.0,0.06836372]
[1749508832230,1.28669957,110220.0,110210.0,0.06836375]
[1749508832438,1.28669957,110220.0,110210.0,0.05614424]
[1749508832642,1.28669957,110220.0,110210.0,0.06835923]
[1749508832824,0.92589957,110220.0,110210.0,0.06835923]
[1749508833030,0.92589957,110220.0,110210.0,0.05614424]
[1749508833840,0.92589957,110220.0,110210.0,0.06978879]
[1749508834336,0.92589957,110220.0,110210.0,0.06978852]
[1749508834537,0.92589957,110220.0,110210.0,0.06978851]
[1749508834739,0.92589957,110220.0,110210.0,0.0697885]
[1749508834938,0.92589957,110220.0,110210.0,0.06978846]
[1749508835143,0.92589957,110220.0,110210.0,0.05614424]
[1749508835437,0.92995617,110220.0,110210.0,0.05614424]
[1749508835835,0.798289,110220.0,110210.0,0.05614424]
[1749508836036,0.92995617,110220.0,110210.0,0.06978852]
[1749508836436,0.92995617,110220.0,110210.0,0.01364428]
[1749508836437,1.42242334,110220.0,110210.0,0.01364428]
[1749508836639,0.1813889,110210.0,110200.0,0.50107468]
[1749508836838,0.41005607,110210.0,110200.0,0.43059]
[1749508837041,0.41005607,110210.0,110200.0,0.37456716]
[1749508837343,0.82145607,110210.0,110200.0,0.37314145]
[1749508837540,0.82145607,110210.0,110200.0,0.37456864]
[1749508837732,0.82145607,110210.0,110200.0,0.37314151]
[1749508837939,0.82145607,110210.0,110200.0,0.01234151]
[1749508838136,0.82145607,110210.0,110200.0,0.013769]
[1749508838334,0.1814054,110200.0,110190.0,0.51921468]
[1749508838534,0.92543257,110200.0,110190.0,0.51345966]
[1749508838738,0.92543257,110200.0,110190.0,0.51479746]
[1749508839042,0.92543257,110200.0,110190.0,0.50107468]
[1749508839244,0.92543257,110200.0,110190.0,0.51478045]
[1749508839444,0.92543257,110200.0,110190.0,0.5282355]
[1749508839647,0.92543257,110200.0,110190.0,0.5144861]
[1749508839847,0.92543257,110200.0,110190.0,0.51677997]
[1749508840052,0.7937654,110200.0,110190.0,0.51677994]
[1749508840551,0.7937654,110200.0,110190.0,0.51548822]
[1749508840749,0.1814218,110190.0,110180.0,0.08413044]
[1749508840947,0.1814548,110170.0,110160.0,0.08424788]
[1749508841148,0.37585204,110180.0,110160.0,0.53578038]
[1749508841357,0.00013637,110180.0,110170.0,0.5422548]
[1749508841652,0.95981047,110180.0,110170.0,0.72348524]
[1749508841853,1.14124877,110180.0,110170.0,0.72348524]
[1749508842552,1.13240366,110180.0,110170.0,0.72348524]
[1749508842752,1.13440366,110180.0,110170.0,0.72348524]
[1749508842954,0.11212,110180.0,110170.0,0.72348524]
[1749508843147,0.7328783,110180.0,110170.0,0.72348524]
[1749508843542,0.7324783,110180.0,110170.0,0.72348524]
[1749508843756,0.7328783,110180.0,110170.0,0.72348524]
[1749508844051,0.80403383,110180.0,110170.0,0.72348524]
[1749508844855,0.935701,110180.0,110170.0,0.72348524]
[1749508845449,0.935661,110180.0,110170.0,0.54203044]
[1749508846254,0.935661,110180.0,110170.0,0.72348524]
[1749508846445,0.935661,110180.0,110170.0,0.54203044]
[1749508848658,1.028161,110180.0,110170.0,0.44493044]
[1749508848856,0.1814548,110170.0,110160.0,0.13282425]
[1749508849055,0.37382197,110170.0,110160.0,0.13282425]
[1749508849247,0.37382197,110170.0,110160.0,0.10252425]
[1749508849447,0.37382197,110170.0,110160.0,0.01839381]
[1749508850257,0.50548914,110170.0,110160.0,0.01839381]
[1749508850761,0.50748914,110170.0,110160.0,0.01839381]
[1749508851157,0.86828914,110170.0,110160.0,0.01839381]
[1749508851754,0.86728914,110170.0,110160.0,0.01839381]
[1749508851955,0.86928914,110170.0,110160.0,0.01839381]
[1749508852464,0.87028914,110170.0,110160.0,0.01839381]
[1749508852854,0.87028914,110170.0,110160.0,0.03123244]
[1749508853058,0.87028914,110170.0,110160.0,0.01839381]
[1749508853357,0.87028914,110170.0,110160.0,0.04531777]
[1749508853358,1.41824914,110170.0,110160.0,0.04531777]
[1749508853755,1.41824914,110170.0,110160.0,0.03247882]
[1749508853950,1.41824914,110170.0,110160.0,0.0453509]
[1749508854158,1.41824914,110170.0,110160.0,0.03124527]
[1749508854366,1.41824914,110170.0,110160.0,0.03257266]
[1749508854564,1.41824914,110170.0,110160.0,0.03132914]
[1749508854755,1.41824914,110170.0,110160.0,0.01839381]
[1749508854956,1.41824914,110170.0,110160.0,0.0455066]
[1749508855161,1.72064914,110170.0,110160.0,0.04550663]
[1749508855464,1.82980914,110170.0,110160.0,0.04550663]
[1749508855764,1.82980914,110170.0,110160.0,0.03257265]
[1749508855959,1.82980914,110170.0,110160.0,0.04556205]
[1749508856164,1.82980914,110170.0,110160.0,0.04556222]
[1749508856664,1.82976914,110170.0,110160.0,0.03250413]
[1749508856967,1.82976914,110170.0,110160.0,0.04563198]
[1749508857568,1.82976914,110170.0,110160.0,0.04565557]
[1749508857954,1.82976914,110170.0,110160.0,0.03257272]
[1749508858155,1.82976914,110170.0,110160.0,0.01839381]
[1749508858455,1.82976914,110170.0,110160.0,0.03257272]
[1749508858658,1.82976914,110170.0,110160.0,0.04565399]
[1749508859065,1.82387072,110170.0,110160.0,0.04565399]
[1749508859464,1.82387072,110170.0,110160.0,0.0456296]
[1749508859465,1.69220355,110170.0,110160.0,0.0456296]
[1749508859669,1.69220355,110170.0,110160.0,0.01839381]
[1749508859970,1.69220355,110170.0,110160.0,0.03144804]
[1749508860163,1.82387072,110170.0,110160.0,0.0325727]
[1749508860370,1.82387072,110170.0,110160.0,0.03144781]
[1749508860570,1.82387072,110170.0,110160.0,0.0456267]
[1749508860963,1.69220355,110170.0,110160.0,0.0456267]
[1749508861559,1.14432355,110170.0,110160.0,0.0456267]
[1749508861774,1.69220355,110170.0,110160.0,0.04562674]
[1749508862069,1.69220355,110170.0,110160.0,0.03143197]
[1749508862271,1.69220355,110170.0,110160.0,0.04561074]
[1749508862866,1.69216355,110170.0,110160.0,0.04561074]
[1749508863066,1.69216355,110170.0,110160.0,0.03144703]
[1749508863262,1.82383072,110170.0,110160.0,0.03257279]
[1749508863459,1.82383072,110170.0,110160.0,0.04569901]
[1749508863667,1.82383072,110170.0,110160.0,0.00478381]
[1749508863865,1.82383072,110170.0,110160.0,0.0189628]
[1749508864066,1.82383072,110170.0,110160.0,0.03209004]
[1749508864664,1.82383072,110170.0,110160.0,0.00478381]
[1749508864864,1.82383072,110170.0,110160.0,0.0320929]
[1749508865064,1.82383072,110170.0,110160.0,0.01791384]
[1749508865264,1.82383072,110170.0,110160.0,0.00478381]
[1749508865469,1.82383072,110170.0,110160.0,0.03209457]
[1749508865860,1.81903961,110170.0,110160.0,0.03209457]
[1749508866573,1.81899961,110170.0,110160.0,0.04564522]
[1749508866769,0.61666527,110170.0,110160.0,0.07354032]
[1749508866974,1.26583244,110170.0,110160.0,0.54491153]
[1749508867174,1.26623244,110170.0,110160.0,0.53067975]
[1749508867374,1.26623244,110170.0,110160.0,0.54485733]
[1749508867576,1.26623244,110170.0,110160.0,0.50276012]
[1749508867966,1.26623244,110170.0,110160.0,0.54488909]
[1749508868362,1.26619244,110170.0,110160.0,0.5448707]
[1749508868665,1.26619244,110170.0,110160.0,0.48856431]
[1749508868869,1.26619244,110170.0,110160.0,0.50274254]
[1749508869175,1.26591244,110170.0,110160.0,0.50274259]
[1749508870077,1.26591244,110170.0,110160.0,0.54482455]
[1749508870278,1.26591244,110170.0,110160.0,0.54482452]
[1749508870476,1.26591244,110170.0,110160.0,0.58680089]
[1749508870670,1.26591244,110170.0,110160.0,0.57262339]
[1749508870864,1.26591244,110170.0,110160.0,0.64302939]
[1749508871772,1.26591244,110170.0,110160.0,0.63023025]
[1749508871972,1.26591244,110170.0,110160.0,0.62989831]
[1749508872369,1.26591244,110170.0,110160.0,0.64271553]
[1749508872573,1.26591244,110170.0,110160.0,0.26909803]
[1749508872878,1.26591244,110170.0,110160.0,0.28191663]
[1749508873072,1.26591244,110170.0,110160.0,0.26807132]
[1749508873378,1.26591244,110170.0,110160.0,0.28191662]
[1749508873573,1.26591244,110170.0,110160.0,0.26807132]
[1749508873774,1.26591244,110170.0,110160.0,0.64267958]
[1749508873979,1.26591244,110170.0,110160.0,0.62886126]
[1749508874384,1.2600146,110170.0,110160.0,0.64267476]
[1749508874679,1.2600146,110170.0,110160.0,0.62986988]
[1749508874875,1.2600146,110170.0,110160.0,0.64263817]
[1749508875078,1.2600146,110170.0,110160.0,0.64263907]
[1749508875269,1.2600146,110170.0,110160.0,0.62882195]
[1749508875474,1.2600146,110170.0,110160.0,0.5737397]
[1749508875675,1.2600146,110170.0,110160.0,0.58651177]
[1749508875875,1.2600146,110170.0,110160.0,0.58651187]
[1749508876071,1.2600146,110170.0,110160.0,0.57374091]
[1749508876276,1.2600146,110170.0,110160.0,0.22571223]
[1749508876671,1.2600146,110170.0,110160.0,0.21294092]
[1749508876872,1.2600146,110170.0,110160.0,0.22573104]
[1749508877079,1.2600146,110170.0,110160.0,0.22576951]
[1749508877278,1.2600146,110170.0,110160.0,0.21182773]
[1749508877470,1.2600146,110170.0,110160.0,0.21182891]
[1749508877677,1.2600146,110170.0,110160.0,0.22579128]
[1749508877884,1.2600146,110170.0,110160.0,0.22579109]
[1749508878077,1.2600146,110170.0,110160.0,0.22579344]
[1749508878276,1.2600146,110170.0,110160.0,0.58659344]
[1749508878474,0.7121346,110170.0,110160.0,0.58659375]
[1749508878774,1.2597346,110170.0,110160.0,0.50246331]
[1749508878976,1.2593346,110170.0,110160.0,0.60058956]
[1749508879175,1.2597346,110170.0,110160.0,0.50238367]
[1749508879379,1.2597346,110170.0,110160.0,0.50237934]
[1749508879580,1.2597346,110170.0,110160.0,0.60059145]
[1749508879878,1.2597346,110170.0,110160.0,0.61455311]
[1749508880579,1.2597346,110170.0,110160.0,0.50238731]
[1749508880785,1.2597346,110170.0,110160.0,0.1276216]
[1749508880980,1.2597346,110170.0,110160.0,0.14158469]
[1749508881276,1.2597346,110170.0,110160.0,0.5024439]
[1749508881483,1.2597346,110170.0,110160.0,0.4896577]
[1749508881673,1.2597346,110170.0,110160.0,0.61460907]
[1749508881873,1.25088784,110170.0,110160.0,0.61460907]
[1749508882078,1.25088784,110170.0,110160.0,0.61460971]
[1749508882387,1.25088784,110170.0,110160.0,0.60182532]
[1749508882682,1.11922067,110170.0,110160.0,0.60064304]
[1749508882884,1.25088784,110170.0,110160.0,0.61453606]
[1749508883183,1.25088784,110170.0,110160.0,0.60058072]
[1749508883381,1.25088784,110170.0,110160.0,0.61452465]
[1749508884284,1.25088784,110170.0,110160.0,0.60181347]
[1749508884680,1.25088784,110170.0,110160.0,0.58786027]
[1749508884887,1.25088784,110170.0,110160.0,0.60058611]
[1749508885086,1.25088784,110170.0,110160.0,0.6145399]
[1749508885587,1.25088784,110170.0,110160.0,0.61454173]
[1749508885788,1.25088784,110170.0,110160.0,0.25375916]
[1749508885982,1.25088784,110170.0,110160.0,0.24101765]
[1749508886180,1.25088784,110170.0,110160.0,0.23980029]
[1749508886380,1.25088784,110170.0,110160.0,0.22706027]
[1749508886578,1.64488784,110170.0,110160.0,0.11578359]
[1749508886783,1.67538784,110170.0,110160.0,0.11588034]
[1749508886984,1.31458784,110170.0,110160.0,0.11588034]
[1749508887179,1.67538784,110170.0,110160.0,0.11588034]
[1749508887383,1.80705501,110170.0,110160.0,0.11588034]
[1749508887581,1.80705501,110170.0,110160.0,0.1030351]
[1749508887777,1.80705501,110170.0,110160.0,0.17234929]
[1749508887981,1.80705501,110170.0,110160.0,0.1594695]
[1749508888181,1.80705501,110170.0,110160.0,0.17239414]
[1749508888381,1.80705501,110170.0,110160.0,0.1594695]
[1749508888589,1.80705501,110170.0,110160.0,0.17239741]
[1749508889388,1.80705501,110170.0,110160.0,0.1594695]
[1749508889582,1.84950536,110170.0,110160.0,0.08776268]
[1749508889988,1.84950536,110170.0,110160.0,0.07482821]
[1749508890189,1.84950536,110170.0,110160.0,0.13000774]
[1749508890385,1.84950536,110170.0,110160.0,0.13000767]
[1749508891388,1.03897102,110170.0,110160.0,0.0876562]
[1749508891591,1.17023819,110170.0,110160.0,0.0876562]
[1749508891887,1.17063819,110170.0,110160.0,0.08756088]
[1749508892093,1.71719819,110170.0,110160.0,0.08756088]
[1749508892295,1.71759819,110170.0,110160.0,0.08756088]
[1749508893087,1.71759819,110170.0,110160.0,0.07482821]
[1749508893391,1.03897102,110170.0,110160.0,0.08754807]
[1749508893593,1.31390784,110170.0,110160.0,0.11575359]
[1749508893785,0.76738784,110170.0,110160.0,0.11568195]
[1749508893985,1.31390784,110170.0,110160.0,0.11568195]
[1749508894185,1.31430784,110170.0,110160.0,0.11568195]
[1749508894389,1.31430784,110170.0,110160.0,0.11565694]
[1749508894795,0.76738784,110170.0,110160.0,0.1030351]
[1749508894988,1.31426784,110170.0,110160.0,0.1030351]
[1749508895291,0.76738784,110170.0,110160.0,0.1030351]
[1749508895491,1.18260067,110170.0,110160.0,0.11567635]
[1749508895692,1.18260067,110170.0,110160.0,0.14636536]
[1749508895891,0.76738784,110170.0,110160.0,0.14636536]
[1749508896096,1.31426784,110170.0,110160.0,0.14636536]
[1749508896292,1.31426784,110170.0,110160.0,0.14636655]
[1749508896493,1.31426784,110170.0,110160.0,0.14636629]
[1749508896692,1.31426784,110170.0,110160.0,0.14636857]
[1749508896887,1.31426784,110170.0,110160.0,0.14636385]
[1749508897087,1.31422784,110170.0,110160.0,0.14635019]
[1749508897593,1.18256067,110170.0,110160.0,0.14635019]
[1749508897794,1.31422784,110170.0,110160.0,0.14635019]
[1749508897994,1.31422784,110170.0,110160.0,0.1337351]
[1749508898194,0.76738784,110170.0,110160.0,0.1463447]
[1749508898389,1.31422784,110170.0,110160.0,0.1337351]
[1749508898792,1.18252067,110170.0,110160.0,0.14635221]
[1749508898990,1.31418784,110170.0,110160.0,0.14631286]
[1749508899189,1.31418784,110170.0,110160.0,0.1337351]
[1749508899389,0.35578784,110170.0,110160.0,0.14631587]
[1749508899697,1.11846067,110170.0,110160.0,0.38650762]
[1749508899890,1.11846067,110170.0,110160.0,0.38649934]
[1749508900091,1.11846067,110170.0,110160.0,0.37393147]
[1749508900590,1.11806067,110170.0,110160.0,0.37393147]
[1749508900791,1.11846067,110170.0,110160.0,0.37393147]
[1749508902489,1.11846067,110170.0,110160.0,0.19246027]
[1749508902891,1.25012784,110170.0,110160.0,0.19246027]
[1749508903798,1.28302784,110170.0,110160.0,0.19246027]
[1749508905089,1.28302784,110170.0,110160.0,0.13056027]
[1749508905295,1.31442784,110170.0,110160.0,0.01839381]
[1749508906903,1.31442784,110170.0,110160.0,0.13056027]
[1749508908799,0.57202067,110170.0,110160.0,0.31203147]
[1749508908999,1.24988784,110170.0,110160.0,0.26436501]
[1749508910804,1.24988784,110170.0,110160.0,0.37653147]
[1749508911807,1.11814067,110170.0,110160.0,0.34343147]
[1749508912003,0.07115553,110180.0,110170.0,0.1814547]
[1749508912209,0.10861637,110190.0,110180.0,0.1814382]
[1749508912408,0.10861637,110190.0,110180.0,0.87918676]
[1749508912702,0.10901637,110190.0,110180.0,0.82896537]
[1749508913010,0.10901637,110190.0,110180.0,1.40569135]
[1749508913209,0.00013637,110190.0,110180.0,1.21063254]
[1749508913502,0.6643777,110210.0,110200.0,0.1814056]
[1749508913707,0.7728577,110210.0,110200.0,1.14713337]
[1749508913903,0.7728577,110210.0,110200.0,1.24423337]
[1749508914103,0.3352177,110210.0,110200.0,1.24423337]
[1749508914308,0.7727777,110210.0,110200.0,1.24423337]
[1749508914808,0.7727777,110210.0,110200.0,1.25784337]
[1749508915310,0.7274303,110210.0,110200.0,1.14991277]
[1749508915704,0.54604,110210.0,110200.0,1.14991277]
[1749508915908,0.7284291,110210.0,110200.0,1.14991277]
[1749508916108,0.7294291,110210.0,110200.0,1.0182456]
[1749508916707,0.11048,110210.0,110200.0,1.10242799]
[1749508917010,0.54796,110210.0,110200.0,1.26237337]
[1749508917205,0.54836,110210.0,110200.0,1.26237337]
[1749508918411,0.54836,110210.0,110200.0,1.23398764]
[1749508918808,0.11088,110210.0,110200.0,1.23398764]